fUSD/lending_fUSD_20260613
["ID","MTS","AMOUNT","RATE_DAILY","PERIOD"]
[424969509,1781361058000,-500.0,0.00029,2]
[424969508,1781361058000,-500.0,0.00029,2]
[424969507,1781361058000,-500.0,0.00029,2]
[424969503,1781361058000,-500.0,0.00029,2]
[424969504,1781361058000,-500.0,0.00029,2]
[424969505,1781361058000,-500.0,0.00029,2]
[424969501,1781361058000,-500.0,0.00029,2]
[424969502,1781361058000,-500.0,0.00029,2]
[424969532,1781361058000,-159.37562362,0.00029,2]
[424969517,1781361058000,-335.29250229,0.00029,2]
[424969506,1781361058000,-500.0,0.00029,2]
[424969533,1781361058000,-10401.3297579,0.00029,2]
[424969531,1781361058000,-150.0,0.00029,2]
[424969534,1781361058000,-200.0,0.00029,2]
[424969564,1781361058000,-1229.414061,0.00029,7]
[424969562,1781361058000,-1229.414061,0.00029,7]
[424969563,1781361058000,-1229.414061,0.00029,7]
[424969561,1781361058000,-1229.414061,0.00029,7]
[424969559,1781361058000,-286.245694,0.00029,7]
[424969557,1781361058000,-151.0,0.00029,7]
[424969558,1781361058000,-151.0,0.00029,7]
[424969555,1781361058000,-151.0,0.00029,7]
[424969556,1781361058000,-151.0,0.00029,7]
[424969552,1781361058000,-500.0,0.00029,2]
[424969554,1781361058000,-500.0,0.00029,2]
[424969553,1781361058000,-200.0,0.00029,2]
[424969550,1781361058000,-200.0,0.00029,2]
[424969551,1781361058000,-227.71842302,0.00029,2]
[424969560,1781361058000,-151.0,0.00029,7]
[424969549,1781361058000,-200.0,0.00029,2]
[424969535,1781361058000,-200.0,0.00029,2]
[424969548,1781361058000,-200.0,0.00029,2]
[424969536,1781361058000,-200.0,0.00029,2]
[424969537,1781361058000,-200.0,0.00029,2]
[424969539,1781361058000,-200.0,0.00029,2]
[424969541,1781361058000,-200.0,0.00029,2]
[424969538,1781361058000,-200.0,0.00029,2]
[424969543,1781361058000,-200.0,0.00029,2]
[424969542,1781361058000,-200.0,0.00029,2]
[424969545,1781361058000,-200.0,0.00029,2]
[424969547,1781361058000,-337.05,0.00029,2]
[424969546,1781361058000,-218.32,0.00029,2]
[424969544,1781361058000,-200.0,0.00029,2]
[424969540,1781361058000,-200.0,0.00029,2]
[424969594,1781361059000,-162.032497,0.00029,7]
[424969595,1781361059000,-351.714565,0.00029,7]
[424969589,1781361059000,-200.0,0.00029,2]
[424969588,1781361059000,-1157.771403,0.00029,7]
[424969591,1781361059000,-151.0,0.00029,7]
[424969590,1781361059000,-151.0,0.00029,7]
[424969593,1781361059000,-151.0,0.00029,7]
[424969596,1781361059000,-162.032497,0.00029,7]
[424969597,1781361059000,-351.714565,0.00029,7]
[424969603,1781361059000,-794.763169,0.00029,7]
[424969600,1781361059000,-351.714565,0.00029,7]
[424969601,1781361059000,-161.0,0.00029,30]
[424969598,1781361059000,-162.032497,0.00029,7]
[424969602,1781361059000,-500.0,0.00029,2]
[424969612,1781361059000,-417.224131,0.00029,7]
[424969611,1781361059000,-417.224131,0.00029,7]
[424969613,1781361059000,-250.0,0.00029,2]
[424969592,1781361059000,-162.032497,0.00029,7]
[424969599,1781361059000,-351.714565,0.00029,7]
[424969586,1781361059000,-1157.771403,0.00029,7]
[424969573,1781361059000,-493.169011,0.00029,7]
[424969585,1781361059000,-1243.076552,0.00029,7]
[424969566,1781361059000,-151.283773,0.00029,7]
[424969565,1781361059000,-500.0,0.00029,2]
[424969568,1781361059000,-151.0,0.00029,7]
[424969567,1781361059000,-150.0,0.00029,2]
[424969569,1781361059000,-151.0,0.00029,7]
[424969571,1781361059000,-493.169011,0.00029,7]
[424969572,1781361059000,-500.0,0.00029,2]
[424969570,1781361059000,-154.309099,0.00029,7]
[424969576,1781361059000,-151.0,0.00029,7]
[424969574,1781361059000,-493.169011,0.00029,7]
[424969575,1781361059000,-493.169011,0.00029,7]
[424969577,1781361059000,-3161.85,0.00029,120]
[424969578,1781361059000,-500.0,0.00029,2]
[424969580,1781361059000,-1243.076552,0.00029,7]
[424969579,1781361059000,-151.0,0.00029,7]
[424969604,1781361059000,-794.763169,0.00029,7]
[424969583,1781361059000,-1243.076552,0.00029,7]
[424969581,1781361059000,-1157.771403,0.00029,7]
[424969587,1781361059000,-1243.076552,0.00029,7]
[424969584,1781361059000,-1157.771403,0.00029,7]
[424969605,1781361059000,-794.763169,0.00029,7]
[424969582,1781361059000,-241.953272,0.00029,7]
[424969607,1781361059000,-417.224131,0.00029,7]
[424969635,1781361059000,-459.0,0.00029126,30]
[424969631,1781361059000,-437.0,0.00029123,30]
[424969636,1781361059000,-284.01862642,0.00029161,2]
[424969638,1781361059000,-194.72792766,0.00029161,2]
[424969645,1781361059000,-284.0,0.00029166,30]
[424969639,1781361059000,-153.05655402,0.00029161,2]
[424969637,1781361059000,-233.5188934,0.00029161,2]
[424969640,1781361059000,-233.5188934,0.00029161,2]
[424969643,1781361059000,-151.0,0.00029161,2]
[424969641,1781361059000,-160.13511027,0.00029161,2]
[424969644,1781361059000,-233.5188934,0.00029161,2]
[424969646,1781361059000,-1047.0,0.00029166,30]
[424969649,1781361059000,-1257.0,0.00029166,30]
[424969648,1781361059000,-266.0,0.00029166,30]
[424969647,1781361059000,-386.0,0.00029166,30]
[424969652,1781361059000,-150.0,0.00029315,2]
[424969651,1781361059000,-505.0,0.00029248,10]
[424969650,1781361059000,-493.99,0.000292,7]
[424969606,1781361059000,-794.763169,0.00029,7]
[424969633,1781361059000,-1201.0,0.00029126,30]
[424969634,1781361059000,-2822.0,0.00029126,30]
[424969642,1781361059000,-151.0,0.00029161,2]
[424969628,1781361059000,-629.0,0.00029123,30]
[424969632,1781361059000,-344.0,0.00029126,30]
[424969609,1781361059000,-500.0,0.00029,2]
[424969608,1781361059000,-318.957658,0.00029,30]
[424969610,1781361059000,-417.224131,0.00029,7]
[424969615,1781361059000,-151.0,0.00029,7]
[424969614,1781361059000,-211.58206752,0.00029,2]
[424969622,1781361059000,-403.83,0.000291,2]
[424969621,1781361059000,-1197.66,0.00029033,30]
[424969624,1781361059000,-601.3,0.000291,2]
[424969616,1781361059000,-151.0,0.00029,7]
[424969623,1781361059000,-601.29,0.000291,2]
[424969619,1781361059000,-1016.81418,0.00029,2]
[424969617,1781361059000,-1000.0,0.00029,2]
[424969618,1781361059000,-1000.0,0.00029,2]
[424969626,1781361059000,-1001.32,0.000291,30]
[424969625,1781361059000,-1197.66,0.000291,30]
[424969627,1781361059000,-256.0,0.00029123,30]
[424969629,1781361059000,-202.0,0.00029123,30]
[424969620,1781361059000,-1002.86772,0.00029,2]
[424969630,1781361059000,-362.0,0.00029123,30]
[424969692,1781361060000,-165.31350154,0.00029452,7]
[424969686,1781361060000,-633.59473839,0.00029452,7]
[424969689,1781361060000,-482.15165852,0.00029452,7]
[424969685,1781361060000,-197.56874117,0.00029452,7]
[424969683,1781361060000,-219.62288654,0.00029452,7]
[424969682,1781361060000,-476.64179994,0.00029452,7]
[424969687,1781361060000,-207.69916299,0.00029452,7]
[424969684,1781361060000,-398.62868851,0.00029452,7]
[424969681,1781361060000,-340.60345449,0.00029452,7]
[424969691,1781361060000,-221.84390347,0.00029452,7]
[424969688,1781361060000,-736.85727657,0.00029452,7]
[424969690,1781361060000,-441.14913274,0.00029452,7]
[424969703,1781361060000,-239.02069321,0.00029452,7]
[424969695,1781361060000,-455.25057047,0.00029452,2]
[424969696,1781361060000,-173.73494006,0.00029452,7]
[424969698,1781361060000,-468.29822507,0.00029452,7]
[424969697,1781361060000,-347.47914688,0.00029452,7]
[424969700,1781361060000,-474.58834871,0.00029452,7]
[424969694,1781361060000,-512.45864293,0.00029452,7]
[424969701,1781361060000,-553.19367013,0.00029452,7]
[424969699,1781361060000,-598.22199213,0.00029452,7]
[424969702,1781361060000,-539.66583039,0.00029452,7]
[424969706,1781361060000,-160.06722887,0.00029452,7]
[424969677,1781361060000,-539.4681172,0.00029452,7]
[424969693,1781361060000,-225.80186222,0.00029452,7]
[424969679,1781361060000,-473.60848203,0.00029452,7]
[424969655,1781361060000,-500.0,0.00029315,2]
[424969678,1781361060000,-205.16945778,0.00029452,7]
[424969656,1781361060000,-500.0,0.00029315,2]
[424969654,1781361060000,-500.0,0.00029315,2]
[424969657,1781361060000,-500.0,0.00029315,2]
[424969653,1781361060000,-500.0,0.00029315,2]
[424969705,1781361060000,-555.52793983,0.00029452,7]
[424969659,1781361060000,-500.0,0.00029315,2]
[424969661,1781361060000,-500.0,0.00029315,2]
[424969669,1781361060000,-324.00886053,0.00029315,2]
[424969658,1781361060000,-500.0,0.00029315,2]
[424969660,1781361060000,-500.0,0.00029315,2]
[424969662,1781361060000,-500.0,0.00029315,2]
[424969673,1781361060000,-627.46074507,0.00029435,3]
[424969666,1781361060000,-500.0,0.00029315,2]
[424969664,1781361060000,-500.0,0.00029315,2]
[424969663,1781361060000,-500.0,0.00029315,2]
[424969665,1781361060000,-500.0,0.00029315,2]
[424969667,1781361060000,-500.0,0.00029315,2]
[424969670,1781361060000,-390.0,0.00029325,2]
[424969674,1781361060000,-410.29883715,0.00029435,3]
[424969671,1781361060000,-150.0,0.00029372,2]
[424969675,1781361060000,-25079.43204777,0.00029452,2]
[424969676,1781361060000,-586.48850884,0.00029452,7]
[424969680,1781361060000,-539.53232094,0.00029452,7]
[424969672,1781361060000,-335.88,0.000294,7]
[424969668,1781361060000,-500.0,0.00029315,2]
[424969708,1781361060000,-337.24003181,0.00029452,7]
[424969704,1781361060000,-608.96803162,0.00029452,7]
[424969712,1781361060000,-200.85507384,0.00029452,7]
[424969740,1781361060000,-522.70230816,0.00029452,7]
[424969741,1781361060000,-174.92467267,0.00029459,7]
[424969746,1781361060000,-486.10329238,0.00029473,7]
[424969739,1781361060000,-353.03606512,0.00029452,2]
[424969744,1781361060000,-577.77607659,0.00029459,7]
[424969743,1781361060000,-461.31870508,0.00029459,7]
[424969748,1781361060000,-537.1684373,0.00029484,7]
[424969742,1781361060000,-522.53669778,0.00029459,7]
[424969745,1781361060000,-505.39738781,0.00029473,7]
[424969747,1781361060000,-476.34513597,0.00029484,7]
[424969750,1781361060000,-513.7291637,0.0002951,7]
[424969751,1781361060000,-501.63227107,0.0002951,7]
[424969749,1781361060000,-1123.43,0.00029485,8]
[424969752,1781361060000,-474.05427766,0.00029523,7]
[424969758,1781361060000,-591.32668451,0.0002953,7]
[424969753,1781361060000,-484.78250496,0.00029523,7]
[424969756,1781361060000,-519.62290444,0.0002953,7]
[424969757,1781361060000,-528.17269313,0.0002953,7]
[424969754,1781361060000,-570.37890213,0.0002953,7]
[424969755,1781361060000,-453.51618882,0.0002953,7]
[424969760,1781361060000,-295.5913258,0.00029539,7]
[424969761,1781361060000,-248.85366096,0.00029539,7]
[424969759,1781361060000,-496.67173535,0.0002953,7]
[424969715,1781361060000,-310.30066638,0.00029452,7]
[424969763,1781361060000,-229.25248672,0.00029539,7]
[424969738,1781361060000,-243.43045025,0.00029452,7]
[424969734,1781361060000,-504.12714619,0.00029452,7]
[424969762,1781361060000,-453.53843763,0.00029539,7]
[424969733,1781361060000,-420.58201532,0.00029452,7]
[424969732,1781361060000,-150.85547736,0.00029452,7]
[424969709,1781361060000,-476.31034153,0.00029452,7]
[424969713,1781361060000,-451.63088329,0.00029452,7]
[424969711,1781361060000,-482.90435318,0.00029452,7]
[424969710,1781361060000,-562.67966576,0.00029452,7]
[424969714,1781361060000,-283.562939,0.00029452,7]
[424969716,1781361060000,-496.5790067,0.00029452,7]
[424969717,1781361060000,-353.45329022,0.00029452,2]
[424969718,1781361060000,-652.20510479,0.00029452,7]
[424969719,1781361060000,-520.21727634,0.00029452,5]
[424969723,1781361060000,-284.3040931,0.00029452,7]
[424969721,1781361060000,-494.05785594,0.00029452,5]
[424969707,1781361060000,-203.02214875,0.00029452,7]
[424969725,1781361060000,-245.06560329,0.00029452,7]
[424969735,1781361060000,-450.90090629,0.00029452,7]
[424969731,1781361060000,-358.59923574,0.00029452,2]
[424969736,1781361060000,-345.68079418,0.00029452,7]
[424969722,1781361060000,-636.68317904,0.00029452,7]
[424969730,1781361060000,-452.80577407,0.00029452,7]
[424969729,1781361060000,-389.6785586,0.00029452,7]
[424969737,1781361060000,-232.40750546,0.00029452,7]
[424969728,1781361060000,-410.92829829,0.00029452,7]
[424969726,1781361060000,-225.64017706,0.00029452,7]
[424969724,1781361060000,-351.97055243,0.00029452,2]
[424969720,1781361060000,-311.53820229,0.00029452,2]
[424969727,1781361060000,-233.49665667,0.00029452,7]
[424969797,1781361061000,-500.0,0.00029775,2]
[424969799,1781361061000,-500.0,0.00029775,2]
[424969801,1781361061000,-500.0,0.00029775,2]
[424969798,1781361061000,-500.0,0.00029775,2]
[424969800,1781361061000,-500.0,0.00029775,2]
[424969793,1781361061000,-500.0,0.00029775,2]
[424969794,1781361061000,-500.0,0.00029775,2]
[424969796,1781361061000,-500.0,0.00029775,2]
[424969791,1781361061000,-500.0,0.00029775,2]
[424969795,1781361061000,-500.0,0.00029775,2]
[424969803,1781361061000,-500.0,0.00029775,2]
[424969811,1781361061000,-500.0,0.00029775,2]
[424969804,1781361061000,-500.0,0.00029775,2]
[424969806,1781361061000,-500.0,0.00029775,2]
[424969808,1781361061000,-500.0,0.00029775,2]
[424969807,1781361061000,-500.0,0.00029775,2]
[424969802,1781361061000,-500.0,0.00029775,2]
[424969812,1781361061000,-500.0,0.00029775,2]
[424969809,1781361061000,-500.0,0.00029775,2]
[424969810,1781361061000,-500.0,0.00029775,2]
[424969813,1781361061000,-460.0,0.00029775,2]
[424969792,1781361061000,-500.0,0.00029775,2]
[424969815,1781361061000,-200.0,0.00029775,2]
[424969805,1781361061000,-500.0,0.00029775,2]
[424969790,1781361061000,-500.0,0.00029775,2]
[424969775,1781361061000,-813.95920808,0.0002954,7]
[424969784,1781361061000,-160.13511027,0.00029709,2]
[424969824,1781361061000,-200.0,0.00029775,2]
[424969767,1781361061000,-197.44926108,0.0002954,7]
[424969768,1781361061000,-475.20809578,0.0002954,7]
[424969766,1781361061000,-196.04488658,0.0002954,7]
[424969764,1781361061000,-521.48359856,0.00029539,7]
[424969765,1781361061000,-593.33658162,0.00029539,7]
[424969770,1781361061000,-592.2245869,0.0002954,7]
[424969769,1781361061000,-471.07423451,0.0002954,7]
[424969772,1781361061000,-532.30961582,0.0002954,7]
[424969773,1781361061000,-660.99750033,0.0002954,7]
[424969771,1781361061000,-458.25986019,0.0002954,7]
[424969786,1781361061000,-151.0,0.00029709,2]
[424969774,1781361061000,-209.79413505,0.0002954,7]
[424969776,1781361061000,-1282.95,0.00029592,8]
[424969777,1781361061000,-298.38688076,0.00029679,120]
[424969778,1781361061000,-3161.85,0.00029685,120]
[424969780,1781361061000,-242.15909246,0.00029709,2]
[424969783,1781361061000,-196.05643121,0.00029709,2]
[424969787,1781361061000,-242.15909246,0.00029709,2]
[424969782,1781361061000,-153.05655402,0.00029709,2]
[424969781,1781361061000,-201.93286098,0.00029709,2]
[424969785,1781361061000,-151.0,0.00029709,2]
[424969789,1781361061000,-500.0,0.00029775,2]
[424969788,1781361061000,-298.38688076,0.00029735,120]
[424969779,1781361061000,-284.01862642,0.00029709,2]
[424969816,1781361061000,-200.0,0.00029775,2]
[424969871,1781361061000,-711.04290843,0.000299,2]
[424969817,1781361061000,-200.0,0.00029775,2]
[424969848,1781361061000,-200.0,0.00029775,2]
[424969847,1781361061000,-200.0,0.00029775,2]
[424969850,1781361061000,-200.0,0.00029775,2]
[424969849,1781361061000,-200.0,0.00029775,2]
[424969853,1781361061000,-500.0,0.00029775,2]
[424969855,1781361061000,-500.0,0.00029775,2]
[424969856,1781361061000,-500.0,0.00029775,2]
[424969852,1781361061000,-500.0,0.00029775,2]
[424969854,1781361061000,-500.0,0.00029775,2]
[424969851,1781361061000,-169.0,0.00029775,2]
[424969858,1781361061000,-500.0,0.00029775,2]
[424969837,1781361061000,-200.0,0.00029775,2]
[424969857,1781361061000,-500.0,0.00029775,2]
[424969859,1781361061000,-500.0,0.00029775,2]
[424969867,1781361061000,-225.78213346,0.00029849,2]
[424969864,1781361061000,-500.0,0.00029775,2]
[424969866,1781361061000,-152.0,0.00029839,6]
[424969862,1781361061000,-500.0,0.00029775,2]
[424969865,1781361061000,-445.0,0.00029775,2]
[424969861,1781361061000,-500.0,0.00029775,2]
[424969863,1781361061000,-500.0,0.00029775,2]
[424969820,1781361061000,-200.0,0.00029775,2]
[424969870,1781361061000,-6141.97946338,0.000299,2]
[424969869,1781361061000,-460.51134265,0.000299,2]
[424969860,1781361061000,-500.0,0.00029775,2]
[424969845,1781361061000,-200.0,0.00029775,2]
[424969868,1781361061000,-271.33,0.000299,6]
[424969846,1781361061000,-200.0,0.00029775,2]
[424969842,1781361061000,-200.0,0.00029775,2]
[424969814,1781361061000,-200.0,0.00029775,2]
[424969818,1781361061000,-200.0,0.00029775,2]
[424969822,1781361061000,-200.0,0.00029775,2]
[424969819,1781361061000,-200.0,0.00029775,2]
[424969821,1781361061000,-200.0,0.00029775,2]
[424969826,1781361061000,-200.0,0.00029775,2]
[424969825,1781361061000,-200.0,0.00029775,2]
[424969828,1781361061000,-200.0,0.00029775,2]
[424969831,1781361061000,-200.0,0.00029775,2]
[424969835,1781361061000,-200.0,0.00029775,2]
[424969827,1781361061000,-200.0,0.00029775,2]
[424969823,1781361061000,-200.0,0.00029775,2]
[424969832,1781361061000,-200.0,0.00029775,2]
[424969829,1781361061000,-200.0,0.00029775,2]
[424969844,1781361061000,-200.0,0.00029775,2]
[424969843,1781361061000,-200.0,0.00029775,2]
[424969839,1781361061000,-200.0,0.00029775,2]
[424969838,1781361061000,-200.0,0.00029775,2]
[424969840,1781361061000,-200.0,0.00029775,2]
[424969836,1781361061000,-200.0,0.00029775,2]
[424969833,1781361061000,-200.0,0.00029775,2]
[424969830,1781361061000,-200.0,0.00029775,2]
[424969834,1781361061000,-200.0,0.00029775,2]
[424969841,1781361061000,-200.0,0.00029775,2]
[424969879,1781361063000,-4194.49437948,0.00011099,2]
[424969882,1781361063000,-500.0,0.00013698,2]
[424969883,1781361063000,-500.0,0.00013698,2]
[424969881,1781361063000,-8640.11976917,0.00011099,2]
[424969878,1781361063000,-38551.19171748,0.00011099,2]
[424969873,1781361063000,-271.1099532,0.000299,2]
[424969875,1781361063000,-436.42467728,0.000299,2]
[424969876,1781361063000,-2062.99,0.000299,2]
[424969874,1781361063000,-4326.34880794,0.000299,2]
[424969872,1781361063000,-833.47779381,0.000299,2]
[424969880,1781361063000,-10459.99178973,0.00011099,2]
[424969877,1781361063000,-1425.82817633,0.00011099,2]
[424969884,1781361063000,-500.0,0.00013698,2]
[424969886,1781361063000,-268.56514,0.00025,2]
[424969888,1781361063000,-1693.74,0.0002755,30]
[424969885,1781361063000,-151.0,0.00024658,2]
[424969896,1781361063000,-6927.62,0.00027872,2]
[424969897,1781361063000,-1693.74,0.00028033,30]
[424969898,1781361063000,-663.33,0.00028033,30]
[424969891,1781361063000,-663.33,0.00027711,7]
[424969895,1781361063000,-1693.74,0.00027872,2]
[424969892,1781361063000,-1693.74,0.00027711,7]
[424969893,1781361063000,-6927.62,0.00027711,7]
[424969889,1781361063000,-6927.62,0.0002755,30]
[424969894,1781361063000,-663.33,0.00027872,2]
[424969887,1781361063000,-663.33,0.0002755,30]
[424969890,1781361063000,-472.78,0.0002755,2]
[424969914,1781361064000,-1000.0,0.00029953,2]
[424969912,1781361064000,-1917.28,0.00029903,2]
[424969915,1781361064000,-1000.0,0.00029953,2]
[424969913,1781361064000,-1655.8,0.00029903,2]
[424969910,1781361064000,-1000.0,0.00029903,2]
[424969917,1781361064000,-1000.0,0.00029953,2]
[424969918,1781361064000,-1875.93,0.00029953,2]
[424969916,1781361064000,-1000.0,0.00029953,2]
[424969909,1781361064000,-3642.5647861,0.000299,2]
[424969903,1781361064000,-663.33,0.00028355,2]
[424969902,1781361064000,-6927.62,0.00028194,7]
[424969901,1781361064000,-1693.74,0.00028194,7]
[424969906,1781361064000,-1693.74,0.00028516,30]
[424969900,1781361064000,-663.33,0.00028194,7]
[424969907,1781361064000,-663.33,0.00028516,30]
[424969904,1781361064000,-1693.74,0.00028355,2]
[424969905,1781361064000,-6927.62,0.00028355,2]
[424969899,1781361064000,-6927.62,0.00028033,30]
[424969908,1781361064000,-1693.74,0.00028677,7]
[424969911,1781361064000,-1000.0,0.00029903,2]
[424969925,1781361064000,-200.0,0.0003,11]
[424969924,1781361064000,-200.0,0.0003,11]
[424969934,1781361064000,-2135.79988738,0.0003,2]
[424969939,1781361064000,-14499.98169724,0.0003,2]
[424969936,1781361064000,-22499.99,0.0003,2]
[424969937,1781361064000,-22500.0,0.0003,2]
[424969938,1781361064000,-22499.99,0.0003,2]
[424969935,1781361064000,-20364.20011262,0.0003,2]
[424969933,1781361064000,-22499.99,0.0003,2]
[424969932,1781361064000,-2499.99,0.0003,2]
[424969922,1781361064000,-200.0,0.0003,11]
[424969926,1781361064000,-493.99,0.0003,7]
[424969930,1781361064000,-22500.0,0.0003,2]
[424969929,1781361064000,-1000.0,0.0003,2]
[424969931,1781361064000,-2500.0,0.0003,2]
[424969919,1781361064000,-259.85,0.00029999,3]
[424969920,1781361064000,-606.32,0.00029999,3]
[424969928,1781361064000,-1226.1052,0.0003,120]
[424969923,1781361064000,-200.0,0.0003,11]
[424969921,1781361064000,-866.18,0.00029999,3]
[424969927,1781361064000,-2763.94182595,0.0003,2]
[424969941,1781361065000,-475.46805493,0.00011099,2]
[424969942,1781361065000,-505.0,0.00011099,2]
[424969943,1781361065000,-12662.09532441,0.00011099,2]
[424969940,1781361065000,-1712.20000009,0.00011099,2]
[424969945,1781361201000,-160.0,6.972e-05,2]
[424969949,1781361255000,-150.0,6.971e-05,2]
[424969950,1781361309000,-171.84668104,6.97e-05,2]
[424969951,1781361363000,-435.02952314,6.97e-05,2]
[424969952,1781361416000,-271.1099532,6.969e-05,2]
[424969953,1781361440000,-33.410713,6.969e-05,2]
[424969954,1781361491000,-500.0,6.969e-05,2]
[424969955,1781361544000,-213.16446634,6.968e-05,2]
[424969956,1781361599000,-150.0,6.967e-05,2]
[424969957,1781361652000,-271.00770342,6.968e-05,2]
[424969958,1781361926000,-150.0,6.964e-05,2]
[424969961,1781361941000,-173.95296152,6.965e-05,2]
[424969959,1781361941000,-150.0,6.965e-05,2]
[424969960,1781361941000,-250.0,6.965e-05,2]
[424969962,1781361980000,-326.04703848,6.965e-05,2]
[424969963,1781362033000,-500.0,6.964e-05,2]
[424969964,1781362035000,-500.0,6.964e-05,2]
[424969967,1781362035000,-500.0,6.964e-05,2]
[424969965,1781362035000,-500.0,6.964e-05,2]
[424969968,1781362035000,-500.0,6.964e-05,2]
[424969969,1781362035000,-500.0,6.964e-05,2]
[424969966,1781362035000,-500.0,6.964e-05,2]
[424969982,1781362036000,-500.0,6.964e-05,2]
[424969981,1781362036000,-500.0,6.964e-05,2]
[424969980,1781362036000,-500.0,6.964e-05,2]
[424969979,1781362036000,-350.00000001,6.964e-05,2]
[424969977,1781362036000,-500.0,6.964e-05,2]
[424969978,1781362036000,-500.0,6.964e-05,2]
[424969976,1781362036000,-500.0,6.964e-05,2]
[424969975,1781362036000,-500.0,6.964e-05,2]
[424969974,1781362036000,-500.0,6.964e-05,2]
[424969973,1781362036000,-500.0,6.964e-05,2]
[424969971,1781362036000,-500.0,6.964e-05,2]
[424969972,1781362036000,-500.0,6.964e-05,2]
[424969970,1781362036000,-500.0,6.964e-05,2]
[424969986,1781362036000,-500.0,6.964e-05,2]
[424969985,1781362036000,-500.0,6.964e-05,2]
[424969983,1781362036000,-500.0,6.964e-05,2]
[424969989,1781362036000,-500.0,6.964e-05,2]
[424970002,1781362036000,-470.74001376,6.964e-05,2]
[424970000,1781362036000,-500.0,6.964e-05,2]
[424970001,1781362036000,-500.0,6.964e-05,2]
[424969999,1781362036000,-500.0,6.964e-05,2]
[424969987,1781362036000,-500.0,6.964e-05,2]
[424969996,1781362036000,-500.0,6.964e-05,2]
[424969997,1781362036000,-500.0,6.964e-05,2]
[424969998,1781362036000,-500.0,6.964e-05,2]
[424969994,1781362036000,-500.0,6.964e-05,2]
[424969993,1781362036000,-500.0,6.964e-05,2]
[424969992,1781362036000,-500.0,6.964e-05,2]
[424969991,1781362036000,-500.0,6.964e-05,2]
[424969988,1781362036000,-208.90365624,6.964e-05,2]
[424969990,1781362036000,-500.0,6.964e-05,2]
[424969995,1781362036000,-500.0,6.964e-05,2]
[424969984,1781362036000,-500.0,6.964e-05,2]
[424970003,1781362043000,-29.25998624,6.964e-05,2]
[424970004,1781362043000,-491.11463161,6.964e-05,2]
[424970005,1781362087000,-8.88536839,6.964e-05,2]
[424970006,1781362141000,-3168.52757685,6.866e-05,2]
[424970007,1781362164000,-3168.52757685,6.866e-05,2]
[424970008,1781362166000,-31415.31512,6.866e-05,2]
[424970009,1781362189000,-3168.52757685,6.866e-05,2]
[424970010,1781362189000,-1908.6578,6.866e-05,2]
[424970011,1781362189000,-3256.71764743,6.866e-05,2]
[424970012,1781362189000,-3256.71764743,6.866e-05,2]
[424970013,1781362189000,-964.19844569,6.866e-05,2]
[424970014,1781362212000,-3168.52757685,6.866e-05,2]
[424970017,1781362213000,-780.5847184,6.866e-05,2]
[424970016,1781362213000,-3406.27032224,6.866e-05,2]
[424970015,1781362213000,-3406.27032224,6.866e-05,2]
[424970018,1781362234000,-1263.57193613,6.866e-05,2]
[424970019,1781362236000,-257.8752,6.866e-05,2]
[424970020,1781362236000,-9038.52513304,6.866e-05,2]
[424970021,1781362236000,-216.029201,6.866e-05,2]
[424970023,1781362236000,-150.0,6.963e-05,2]
[424970026,1781362236000,-261.0,7.071e-05,2]
[424970024,1781362236000,-160.0,6.997e-05,2]